bitfinex-derivatives/quotes_SOLF0:USTF0_20250820
["timestamp","ask_amount","ask_price","bid_price","bid_amount"]
[1755649034850,3.11,177.32,177.17,141.2]
[1755649035049,3.11,177.32,177.2,5.6433]
[1755649035249,3.11,177.32,177.18,3.18]
[1755649035650,3.11,177.32,177.21,5.6429]
[1755649035845,3.11,177.32,177.21,8.8229]
[1755649036249,3.11,177.32,177.22,5.6427]
[1755649036842,3.11,177.32,177.21,3.18]
[1755649037752,3.11,177.32,177.22,5.6428]
[1755649038354,3.11,177.32,177.23,5.6425]
[1755649038654,3.11,177.32,177.21,3.18]
[1755649039254,3.11,177.32,177.22,5.6426]
[1755649039755,3.11,177.32,177.21,3.18]
[1755649040150,3.11,177.32,177.24,8.8221]
[1755649040755,3.11,177.32,177.23,5.6425]
[1755649040952,3.11,177.32,177.2,3.18]
[1755649044458,3.11,177.32,177.23,8.8225]
[1755649045053,3.11,177.32,177.18,3.18]
[1755649045961,3.11,177.32,177.21,8.8232]
[1755649047262,3.11,177.32,177.21,3.18]
[1755649048261,3.11,177.32,177.23,5.6425]
[1755649049663,3.11,177.32,177.22,5.6428]
[1755649049864,3.11,177.32,177.21,3.18]
[1755649050253,3.11,177.32,177.21,8.8231]
[1755649050556,3.11,177.32,177.21,3.18]
[1755649050863,3.11,177.32,177.22,5.6427]
[1755649051063,3.11,177.32,177.21,3.18]
[1755649051365,3.11,177.32,177.21,8.823]
[1755649051758,3.11,177.32,177.21,3.18]
[1755649054258,3.11,177.32,177.23,5.6425]
[1755649054862,3.11,177.32,177.22,5.6428]
[1755649055461,3.11,177.32,177.23,5.6424]
[1755649055664,3.11,177.32,177.21,3.18]
[1755649056469,3.11,177.32,177.22,5.6427]
[1755649056860,3.11,177.32,177.21,3.18]
[1755649057471,3.11,177.32,177.21,8.823]
[1755649057668,3.11,177.32,177.21,3.18]
[1755649058867,3.11,177.32,177.21,8.823]
[1755649059172,3.11,177.32,177.14,3.1]
[1755649059973,3.11,177.32,177.19,5.6436]
[1755649060172,3.11,177.32,177.2,3.1]
[1755649060370,3.11,177.32,177.14,3.1]
[1755649060571,2.63505329,177.31,177.14,3.1]
[1755649060771,3.12,177.3,177.14,3.1]
[1755649061168,3.12,177.3,177.14,8.7454]
[1755649061368,2.63691808,177.29,177.14,8.7454]
[1755649061571,16.96,177.34,177.14,8.7454]
[1755649061572,3.12,177.28,177.14,8.7454]
[1755649061876,3.12,177.28,177.14,3.1]
[1755649063775,3.12,177.26,177.14,3.1]
[1755649067379,3.12,177.24,177.14,3.1]
[1755649067778,3.12,177.24,177.1,3.1]
[1755649067974,2.64248441,177.23,177.1,3.1]
[1755649068276,3.12,177.21,177.1,3.1]
[1755649071078,3.12,177.21,177.1,8.7467]
[1755649071277,3.12,177.21,177.08,3.1]
[1755649071679,3.12,177.21,177.09,5.6468]
[1755649071879,3.12,177.21,177.1,3.1]
[1755649072578,3.12,177.21,177.11,3.1]
[1755649072880,3.12,177.3,177.11,3.1]
[1755649073081,3.12,177.28,177.14,5.6454]
[1755649073276,3.12,177.26,177.15,3.1]
[1755649073472,2.65107495,177.25,177.15,8.7451]
[1755649073779,2.65107495,177.25,177.16,3.1]
[1755649074180,3.12,177.26,177.16,3.1]
[1755649074377,2.65243572,177.25,177.16,3.1]
[1755649074682,3.12,177.26,177.16,3.1]
[1755649076982,2.65324043,177.25,177.16,3.1]
[1755649077180,3.12,177.26,177.16,3.1]
[1755649080079,3.12,177.26,177.17,2.89]
[1755649082582,385.37902592,177.33,177.18,2.89]
[1755649082886,3.01,177.29,177.18,2.89]
[1755649083084,3.01,177.29,177.18,8.534]
[1755649083283,3.01,177.29,177.19,2.89]
[1755649083887,3.01,177.29,177.19,5.6438]
[1755649084090,3.01,177.29,177.2,2.89]
[1755649086982,3.01,177.32,177.2,5.6433]
[1755649087290,2.65144939,177.31,177.21,2.89]
[1755649087491,3.01,177.32,177.21,2.89]
[1755649087694,2.65200371,177.31,177.21,2.89]
[1755649087895,3.01,177.32,177.21,2.89]
[1755649088188,2.65200371,177.31,177.14,23.22499545]
[1755649088392,3.01,177.37,177.18,2.89]
[1755649088596,3.01,177.37,177.2,2.89]
[1755649088785,3.01,177.37,177.27,5.6411]
[1755649088989,3.01,177.37,177.28,2.89]
[1755649089390,3.01,177.37,177.28,8.5309]
[1755649089589,3.01,177.37,177.28,2.89]
[1755649091797,3.01,177.37,177.28,8.531]
[1755649092491,3.01,177.37,177.29,5.6406]
[1755649092697,3.01,177.37,177.3,2.89]
[1755649096194,0.98152588,177.42,177.3,2.89]
[1755649096399,3.01,177.4,177.3,2.89]
[1755649096602,3.01,177.4,177.31,5.6399]
[1755649096799,3.01,177.4,177.32,2.89]
[1755649102399,3.01,177.4,177.33,2.89]
[1755649105308,3.01,177.4,177.33,8.5293]
[1755649106812,3.01,177.45,177.35,2.89]
[1755649107412,3.01,177.45,177.35,8.5286]
[1755649108109,3.01,177.45,177.35,2.89]
[1755649110813,3.01,177.45,177.36,5.6384]
[1755649111014,3.01,177.45,177.35,2.89]
[1755649111416,3.01,177.45,177.35,8.5287]
[1755649111811,3.01,177.45,177.35,2.89]
[1755649112320,3.01,177.45,177.32,2.94]
[1755649113021,3.05,177.43,177.25,2.94]
[1755649113221,3.05,177.41,177.25,2.94]
[1755649113418,3.05,177.39,177.29,5.6406]
[1755649113718,3.05,177.39,177.3,2.94]
[1755649114113,3.05,177.39,177.33,2.94]
[1755649114718,0.04149677,177.38,177.34,2.94]
[1755649114915,3.09149677,177.38,177.34,2.94]
[1755649115116,3.05,177.38,177.34,2.94]
[1755649115317,3.08558507,177.38,177.34,2.94]
[1755649115815,3.05,177.37,177.34,2.94]
[1755649116017,3.05,177.37,177.23,2.94]
[1755649116618,0.03811594,177.32,177.23,2.94]
[1755649117121,0.03811594,177.32,177.26,2.94]
[1755649118020,0.03811594,177.32,177.28,2.94]
[1755649118211,0.03811594,177.32,177.29,2.94]
[1755649118927,0.03811594,177.32,177.3,2.94]
[1755649119813,0.03811594,177.32,177.23,2.94]
[1755649120218,3.05,177.31,177.23,2.94]
[1755649122729,3.05,177.31,177.2,143.44]
[1755649123329,0.0430887,177.27,177.2,143.44]
[1755649123524,3.05,177.26,177.08,378.94]
[1755649123726,3.05,177.26,177.09,140.48]
[1755649123926,0.03815269,177.19,177.14,2.94]
[1755649124229,0.03815269,177.19,177.1,2.94]
[1755649125330,3.08815269,177.19,177.1,2.94]
[1755649126332,3.08815269,177.19,177.1,8.5866]
[1755649128434,3.08815269,177.19,177.12,2.94]
[1755649129237,0.03815269,177.19,177.12,2.94]
[1755649136046,0.03815269,177.19,177.12,8.5858]
[1755649136446,0.03815269,177.19,177.13,2.94]
[1755649137346,0.03815269,177.19,177.14,5.6452]
[1755649137536,0.03815269,177.19,177.15,140.52]
[1755649137739,0.03815269,177.19,177.17,2.94]
[1755649138248,0.03815269,177.19,177.15,140.52]
[1755649138440,0.03815269,177.19,177.16,3.19]
[1755649140249,3.1,177.17,177.15,140.52]
[1755649140444,3.1,177.16,177.15,140.52]
[1755649140643,3.1,177.16,177.08,382.13]
[1755649140846,3.1,177.16,177.09,140.5]
[1755649141044,0.03815269,177.19,177.09,140.5]
[1755649141045,3.1,177.19,177.1,3.19]
[1755649141441,0.03901852,177.14,177.11,3.19]
[1755649141743,0.03901852,177.14,177.13,3.19]
[1755649141943,3.1,177.19,177.13,3.19]
[1755649142651,3.1,177.19,177.11,0.03556973]
[1755649143344,3.1,177.19,177.12,3.19]
[1755649144554,3.1,177.29,177.12,3.19]
[1755649144845,3.1,177.29,177.11,0.03556973]
[1755649144846,3.1,177.29,177.15,5.6449]
[1755649145045,3.1,177.29,177.16,143.67]
[1755649145243,3.1,177.29,177.2,0.03971733]
[1755649150147,3.1806051,177.28,177.12,3.19]
[1755649150343,3.13632918,177.26,177.12,3.19]
[1755649150541,3.13632918,177.26,177.08,378.94]
[1755649150542,3.13632918,177.26,177.09,3.19]
[1755649150745,3.1,177.24,177.09,3.19]
[1755649151237,3.1,177.24,177.08,378.94]
[1755649151238,2.62080825,177.23,177.08,378.94]
[1755649151453,157.43,177.28,177.01,331.80096573]
[1755649151454,0.03965705,177.18,177.01,331.80096573]
[1755649151649,3.1,177.17,177.01,331.80096573]
[1755649151945,3.1,177.15,176.97,3.19]
[1755649152151,0.03822426,177.11,176.97,3.19]
[1755649152349,3.1,177.1,176.97,3.19]
[1755649152955,0.03951698,177.05,176.97,3.19]
[1755649153549,3.1,177.06,176.97,3.19]
[1755649153748,0.03810423,177.03,176.97,8.8408]
[1755649153950,3.1,177.1,176.98,3.19]
[1755649154146,3.1,177.1,177.02,8.8391]
[1755649154351,3.1,177.1,176.97,3.19]
[1755649155243,3.1,177.1,177.02,0.03581033]
[1755649156756,3.1,177.1,177.02,5.68481033]
[1755649157055,3.1,177.1,177.02,0.03581033]
[1755649157251,3.1,177.1,177.02,5.68491033]
[1755649157754,3.1,177.1,177.02,0.03581033]
[1755649158450,3.1,177.1,177.03,3.19]
[1755649158647,3.1,177.1,177.02,0.03581033]
[1755649159754,3.1,177.1,177.02,5.68491033]
[1755649159953,3.1,177.1,177.02,0.03581033]
[1755649160551,519.76,177.18,177.02,0.03581033]
[1755649160745,2.61895116,177.17,177.03,3.19]
[1755649160951,3.1,177.16,177.03,3.19]
[1755649161153,3.1,177.16,177.08,0.04342359]
[1755649166362,3.1,177.14,177.08,0.04342359]
[1755649169062,2.95,177.12,176.99,3.06]
[1755649169263,2.95,177.1,176.99,8.7099]
[1755649169667,2.95,177.1,176.99,3.06]
[1755649169960,2.95,177.1,176.97,3.06]
[1755649170361,0.04255695,177.06,177.0,5.6496]
[1755649170666,0.04255695,177.06,177.0,8.7096]
[1755649170867,0.04255695,177.06,177.02,3.06]
[1755649171066,0.04255695,177.06,177.03,3.06]
[1755649171266,0.04255695,177.06,176.96,519.72]
[1755649171267,0.04255695,177.06,176.97,3.06]
[1755649171762,2.95,177.05,176.94,206.34974845]
[1755649171967,2.95,177.05,176.94,209.40974845]
[1755649173070,2.95,177.05,176.9,3.06]
[1755649173363,2.95,177.0,176.9,3.06]
[1755649173761,0.04134204,176.97,176.9,3.06]
[1755649174367,2.99134204,176.97,176.9,3.06]
[1755649175564,2.99134204,176.97,176.87,3.06]
[1755649175763,2.99134204,176.97,176.87,8.714]
[1755649175969,2.95,176.97,176.87,3.06]
[1755649176669,140.52,177.05,176.87,3.06]
[1755649176867,0.04220077,176.94,176.87,3.06]
[1755649177165,2.95,176.97,176.87,3.06]
[1755649177370,0.03760806,176.92,176.87,3.06]
[1755649177566,0.03760806,176.92,176.88,3.06]
[1755649177768,2.98760806,176.92,176.86,379.5]
[1755649178263,2.98760806,176.92,176.85,140.52]
[1755649178660,0.03760806,176.92,176.85,140.52]
[1755649178860,0.03760806,176.92,176.87,5.6539]
[1755649179056,0.03760806,176.92,176.86,3.06]
[1755649181662,0.03760806,176.92,176.88,5.6534]
[1755649181860,0.03760806,176.92,176.9,3.06]
[1755649183276,0.03760806,176.92,176.86,3.06]
[1755649184270,2.95,177.0,176.86,3.06]
[1755649184472,2.95,177.0,176.88,3.06]
[1755649185577,2.95,177.0,176.92,0.03893913]
[1755649186574,2.95,177.0,176.93,5.652]
[1755649187070,2.95,177.0,176.92,0.03893913]
[1755649187673,2.95,177.0,176.93,5.6518]
[1755649187976,2.95,177.0,176.92,0.03893913]
[1755649188775,2.95,177.0,176.93,5.6519]
[1755649189078,2.95,177.04,176.93,3.06]
[1755649190075,2.95,177.04,176.97,0.0366345]
[1755649191971,2.95,177.07,176.98,3.06]
[1755649192177,2.95,177.07,177.0,5.6498]
[1755649192881,2.95,177.07,176.99,5.65]
[1755649193181,2.95,177.07,176.98,3.06]
[1755649193370,2.95,177.07,177.01,0.03816826]
[1755649193680,2.95,177.07,177.01,5.68766826]
[1755649194076,2.95,177.12,177.03,5.6488]
[1755649194279,2.95,177.12,177.01,3.09816826]
[1755649194481,2.95,177.12,177.01,3.06]
[1755649194680,2.95,177.12,177.05,5.6482]
[1755649195382,2.95,177.11,177.07,0.03845744]
[1755649196382,2.95,177.15,177.07,0.03845744]
[1755649196579,2.95,177.13,177.07,0.03845744]
[1755649200686,2.95,177.13,177.07,3.20845744]
[1755649200886,2.92,177.19,177.07,3.20845744]
[1755649201279,2.92,177.19,177.07,3.17]
[1755649201475,2.92,177.19,177.08,5.6471]
[1755649201678,2.92,177.19,177.08,3.17]
[1755649201986,2.92,177.19,177.12,3.17]
[1755649202286,2.92,177.19,177.12,3.20808472]
[1755649202485,2.92,177.19,177.12,8.85408472]
[1755649202781,382.64,177.23,177.12,8.85408472]
[1755649202981,2.92,177.22,177.12,3.20808472]
[1755649203181,2.92,177.22,177.12,3.17]
[1755649203389,2.92,177.22,177.15,0.03560891]
[1755649212894,143.6,177.26,177.16,3.17]
[1755649213593,2.92,177.25,177.19,0.03648232]
[1755649215592,140.68,177.26,177.19,3.20648232]
[1755649215892,2.92,177.29,177.19,3.20648232]
[1755649216282,2.92,177.29,177.19,3.17]
[1755649216482,2.92,177.29,177.22,0.03978885]
[1755649218196,379.5,177.33,177.23,3.17]
[1755649218197,2.92,177.33,177.23,3.17]
[1755649218896,0.03905498,177.3,177.26,0.0375488]
[1755649219390,2.92,177.29,177.23,3.17]
[1755649219595,0.03905498,177.3,177.26,0.03575807]
[1755649219596,2.92,177.28,177.26,0.03575807]
[1755649219985,0.03905498,177.3,177.26,0.03575807]
[1755649220190,2.95905498,177.3,177.26,0.03575807]
[1755649220693,0.03905498,177.3,177.27,3.17]
[1755649220995,2.92,177.29,177.26,0.03575807]
[1755649221491,0.03905498,177.3,177.26,3.20575807]
[1755649221688,0.03905498,177.3,177.26,0.03575807]
[1755649221897,0.03905498,177.3,177.29,3.17]
[1755649222498,0.03905498,177.3,177.26,0.03575807]
[1755649222799,0.03905498,177.3,177.27,3.17]
[1755649223188,0.03905498,177.3,177.26,0.03575807]
[1755649223589,2.92,177.29,177.26,0.03575807]
[1755649223994,2.92,177.28,177.26,0.03575807]
[1755649224496,2.92,177.27,177.26,0.03575807]
[1755649225892,0.03905498,177.3,177.26,0.03575807]
[1755649226093,2.92,177.27,177.26,0.03575807]
[1755649228213,0.03905498,177.3,177.26,0.03575807]
[1755649228512,3.10905498,177.3,177.26,2.92575807]
[1755649228812,3.10905498,177.3,177.26,0.03575807]
[1755649228813,0.03905498,177.3,177.26,0.03575807]
[1755649229007,0.03905498,177.3,177.26,2.92575807]
[1755649230309,3.07,177.29,177.26,0.03575807]
[1755649230711,0.03905498,177.3,177.26,0.03575807]
[1755649231411,3.10905498,177.3,177.26,0.03575807]
[1755649231813,3.07,177.27,177.26,0.03575807]
[1755649235108,3.07,177.27,177.17,2.89]
[1755649235701,6.23902592,177.34,177.17,2.89]
[1755649235909,3.07,177.32,177.17,2.89]
[1755649236109,3.07,177.3,177.18,5.644]
[1755649236314,3.07,177.3,177.19,2.89]
[1755649236508,0.03917306,177.26,177.19,2.89]
[1755649241714,0.03917306,177.26,177.19,8.5337]
[1755649242115,0.03917306,177.26,177.2,2.89]
[1755649242614,146.63902592,177.38,177.2,2.89]
[1755649242814,3.07,177.36,177.2,2.89]
[1755649243017,2.61913758,177.35,177.2,2.89]
[1755649243216,3.07,177.34,177.2,2.89]
[1755649243427,3.07,177.32,177.2,2.89]
[1755649243612,3.07,177.3,177.2,2.89]
[1755649243819,3.07,177.3,177.21,5.6429]
[1755649244213,3.07,177.3,177.2,8.5334]
[1755649244523,3.07,177.3,177.2,2.89]
[1755649246516,3.07,177.28,177.2,2.89]
[1755649246716,3.07,177.28,177.19,140.42]
[1755649247322,3.07,177.28,177.19,143.31]
[1755649247728,3.07,177.26,177.11,2.89]
[1755649247929,3.07,177.24,177.11,2.89]
[1755649248927,3.07,177.24,177.14,5.6452]
[1755649249131,3.07,177.24,177.15,2.89]
[1755649250234,3.07,177.24,177.15,8.5351]
[1755649250436,3.07,177.24,177.15,2.89]
[1755649251627,3.07,177.29,177.15,2.89]
[1755649251829,2.62787845,177.28,177.15,2.89]
[1755649252132,3.07,177.26,177.19,2.89]
[1755649253132,3.07,177.31,177.19,2.89]
[1755649253433,2.63037041,177.3,177.19,2.89]
[1755649253629,3.07,177.28,177.19,2.89]
[1755649254028,2.63139696,177.27,177.19,2.89]
[1755649254228,3.07,177.28,177.19,2.89]
[1755649256134,3.07,177.32,177.19,2.89]
[1755649256335,2.63382852,177.31,177.23,2.89]
[1755649256529,3.07,177.32,177.23,2.89]
[1755649256734,2.63379027,177.31,177.25,0.040088]
[1755649256935,3.07,177.32,177.25,0.040088]
[1755649257539,3.07,177.32,177.25,5.681988]
[1755649258236,3.07,177.32,177.25,0.040088]
[1755649260640,2.63472509,177.31,177.25,0.040088]
[1755649260835,3.07,177.32,177.25,0.040088]
[1755649261035,2.63442619,177.31,177.25,0.040088]
[1755649261236,3.07,177.32,177.25,0.040088]
[1755649261433,3.17,177.36,177.26,2.99]
[1755649261649,2.63418325,177.35,177.26,2.99]
[1755649261941,3.17,177.36,177.26,2.99]
[1755649262140,2.63241068,177.35,177.29,0.04230167]
[1755649262336,3.17,177.36,177.29,0.04230167]
[1755649262643,2.63179802,177.35,177.29,0.04230167]
[1755649262943,3.17,177.36,177.29,0.04230167]
[1755649263247,0.03977767,177.34,177.29,3.03230167]
[1755649263439,3.20977767,177.34,177.29,3.03230167]
[1755649263741,0.03977767,177.34,177.29,0.04230167]
[1755649263940,0.03977767,177.34,177.29,3.03230167]
[1755649264136,3.20977767,177.34,177.29,3.03230167]
[1755649265339,0.03977767,177.34,177.31,2.99]
[1755649266140,0.03977767,177.34,177.29,5.68290167]
[1755649266141,0.03977767,177.34,177.3,2.99]
[1755649267637,0.03977767,177.34,177.29,0.04230167]
[1755649267834,0.03977767,177.34,177.33,2.99]
[1755649268338,0.03977767,177.34,177.33,8.6294]
[1755649269445,0.03977767,177.34,177.33,2.99]
[1755649270647,0.03977767,177.34,177.33,8.6294]
[1755649271035,3.17,177.45,177.37,2.99]
[1755649272545,3.17,177.45,177.39,0.03839237]
[1755649278147,3.17,177.45,177.31,2.99]
[1755649278348,3.17,177.43,177.31,2.99]
[1755649278947,3.17,177.43,177.25,2.99]
[1755649279342,3.17,177.43,177.34,2.99]
[1755649279852,3.17,177.43,177.37,2.99]
[1755649280344,3.17,177.43,177.38,0.03962646]
[1755649280548,3.17,177.43,177.38,3.02962646]
[1755649280749,3.17,177.43,177.38,2.99]
[1755649281348,3.17,177.48,177.38,2.99]
[1755649281655,3.17,177.48,177.26,2.99]
[1755649282647,3.17,177.48,177.33,5.6393]
[1755649282855,3.17,177.46,177.34,2.99]
[1755649283247,3.17,177.46,177.34,8.629]
[1755649283558,3.17,177.46,177.34,2.99]
[1755649286260,3.17,177.46,177.36,5.6383]
[1755649286456,3.17,177.46,177.37,2.99]
[1755649287146,3.17,177.46,177.26,2.99]
[1755649287347,3.17,177.46,177.32,5.6395]
[1755649287546,3.17,177.46,177.33,2.99]
[1755649288263,3.17,177.44,177.26,2.99]
[1755649288559,2.98,177.42,177.3,2.9]
[1755649289555,2.98,177.42,177.25,140.6]
[1755649289757,2.98,177.42,177.27,2.9]
[1755649289957,2.98,177.4,177.25,140.6]
[1755649290149,23.18902592,177.44,177.23,2.9]
[1755649290150,2.98,177.38,177.23,2.9]
[1755649292356,2.6181939,177.37,177.23,2.9]
[1755649292663,2.98,177.36,177.23,2.9]
[1755649295261,2.62144132,177.35,177.23,2.9]
[1755649295460,2.98,177.34,177.23,2.9]
[1755649300666,2.98,177.34,177.25,2.9]
[1755649301065,2.98,177.34,177.26,2.9]
[1755649301764,2.98,177.34,177.2,2.9]
[1755649301959,10.4070541,177.33,177.2,2.9]
[1755649302163,2.62743046,177.32,177.2,2.9]
[1755649302363,2.62743046,177.31,177.2,2.9]
[1755649302566,2.98,177.29,177.13,2.9]
[1755649302766,2.98,177.29,177.12,140.5]
[1755649302962,2.98,177.29,177.16,2.9]
[1755649303364,2.98,177.29,177.19,2.9]
[1755649304673,2.98,177.29,177.22,2.9]
[1755649307079,2.98,177.29,177.18,2.9]
[1755649308678,2.98,177.29,177.12,2.9]
[1755649309168,2.98,177.29,177.12,8.5459]
[1755649309373,2.98,177.29,177.12,2.9]
[1755649309984,2.98,177.28,177.12,2.9]
[1755649310299,2.98,177.22,177.1,2.9]
[1755649310678,2.98,177.26,177.14,2.9]
[1755649311282,2.98,177.26,177.15,5.645]
[1755649311580,2.98,177.26,177.14,2.9]
[1755649311781,2.98,177.26,177.14,8.5454]
[1755649312084,2.98,177.26,177.14,2.9]
[1755649313480,2.98,177.26,177.11,7.77962364]
[1755649313683,2.98,177.26,177.16,2.9]
[1755649314283,2.98,177.26,177.12,2.9]
[1755649314880,2.98,177.26,177.13,5.6456]
[1755649315187,2.98,177.26,177.14,2.9]
[1755649315389,2.98,177.26,177.1,2.9]
[1755649315685,2.98,177.24,177.1,2.9]
[1755649316482,2.61590311,177.23,177.1,2.9]
[1755649316684,2.98,177.22,177.06,2.9]
[1755649316979,2.98,177.18,177.06,2.9]
[1755649317282,2.98,177.18,177.02,2.9]
[1755649317487,2.98,177.16,177.02,2.9]
[1755649317679,2.98,177.14,177.02,2.9]
[1755649317879,0.03638899,177.12,177.02,2.9]
[1755649318187,2.98,177.11,177.02,2.9]
[1755649319083,0.03893839,177.08,177.02,2.9]
[1755649321881,0.03893839,177.08,177.05,2.99]
[1755649322081,0.03893839,177.08,177.06,2.99]
[1755649322383,0.03893839,177.08,177.04,5.6484]
[1755649322384,0.03893839,177.08,177.05,5.648]
[1755649322689,2.96,177.15,177.07,2.99]
[1755649323777,2.96,177.15,177.04,5.6486]
[1755649323981,2.96,177.15,177.09,0.03987323]
[1755649328895,2.96,177.21,177.09,3.02987323]
[1755649329290,2.96,177.21,177.09,2.99]
[1755649329696,2.96,177.21,177.13,0.04154159]
[1755649332898,2.96,177.25,177.14,2.99]
[1755649333690,2.96,177.25,177.18,0.03938001]
[1755649334193,2.61918198,177.24,177.18,0.03938001]
[1755649334392,2.96,177.25,177.18,0.03938001]
[1755649334597,2.61918198,177.24,177.18,0.03938001]
[1755649334896,2.96,177.25,177.18,0.03938001]
[1755649339394,2.96,177.29,177.18,0.03938001]
[1755649339595,2.62508549,177.28,177.19,2.99]
[1755649339795,2.96,177.29,177.19,2.99]
[1755649340094,2.62544809,177.28,177.19,2.99]
[1755649340394,2.96,177.29,177.22,0.03831003]
[1755649342596,2.96,177.29,177.22,3.02831003]
[1755649343698,2.96,177.29,177.22,0.03831003]
[1755649345500,2.62902201,177.28,177.22,0.03831003]
[1755649345705,2.96,177.26,177.22,0.03831003]
[1755649345904,2.96,177.24,177.22,0.03831003]
[1755649346106,2.96,177.23,177.22,0.03831003]
[1755649348600,2.96,177.23,177.13,3.08]
[1755649348601,5.59083926,177.23,177.13,3.08]
[1755649348804,2.96,177.23,177.13,3.08]
[1755649349300,2.96,177.23,177.13,5.6455]
[1755649349508,2.96,177.23,177.14,3.08]
[1755649349699,2.96,177.23,177.14,8.7252]
[1755649349906,0.04315972,177.2,177.14,3.08]
[1755649351408,0.04315972,177.2,177.17,5.6444]
[1755649351602,0.04315972,177.2,177.19,3.08]
[1755649352004,0.04315972,177.2,177.14,5.6453]
[1755649352207,0.04315972,177.2,177.13,3.08]
[1755649353016,3.0,177.34,177.19,3.08]
[1755649353406,2.63452488,177.33,177.22,5.6429]
[1755649353711,3.0,177.34,177.23,3.08]
[1755649354300,3.0,177.34,177.27,0.038432]
[1755649358812,2.63071817,177.33,177.27,0.038432]
[1755649359011,3.0,177.31,177.18,3.08]
[1755649360204,3.0,177.29,177.18,3.08]
[1755649360404,3.0,177.25,177.18,3.08]
[1755649362013,3.0,177.25,177.11,3.08]
[1755649362811,0.04010476,177.2,177.14,5.6452]
[1755649363618,0.04010476,177.2,177.19,3.08]
[1755649364910,0.04010476,177.2,177.11,3.08]
[1755649365513,3.0,177.19,177.11,3.08]
[1755649365919,3.0,177.19,177.09,379.4]
[1755649366217,3.0,177.19,177.07,3.08]
[1755649366615,0.03759594,177.15,177.07,3.08]
[1755649368313,0.03759594,177.15,177.09,0.04093605]
[1755649369621,3.0,177.12,177.09,0.04093605]
[1755649370525,0.03759594,177.15,177.09,0.04093605]
[1755649371522,3.0,177.14,177.09,0.04093605]
[1755649371724,0.03759594,177.15,177.09,0.04093605]
[1755649371921,3.0,177.11,177.09,0.04093605]
[1755649375418,0.03759594,177.15,177.09,0.04093605]
[1755649375622,3.0,177.11,177.09,0.04093605]
[1755649378719,2.9,177.14,177.09,0.04093605]
[1755649379624,2.9,177.12,177.09,0.04093605]
[1755649379831,2.9,177.1,177.09,0.04093605]
[1755649381623,0.03726603,177.11,177.09,0.04093605]
[1755649382533,2.93726603,177.11,177.09,0.04093605]
[1755649383037,2.9,177.1,177.09,0.04093605]
[1755649383422,3.46,177.1,176.98,219.01587241]
[1755649383623,2.9,177.1,176.99,3.06]
[1755649384222,2.9,177.1,177.0,3.06]
[1755649384730,0.03902602,177.07,177.0,3.06]
[1755649389543,2.9,177.06,176.96,3.06]
[1755649389736,2.9,177.04,176.96,3.06]